bitfinex-derivatives/quotes_ETHF0:USTF0_20241004
["timestamp","ask_amount","ask_price","bid_price","bid_amount"]
[1728070514210,1.2378,2431.5,2431.3,0.3996]
[1728070514502,0.8265,2431.5,2431.3,0.3996]
[1728070515096,0.4113,2431.4,2431.3,0.3996]
[1728070516008,1.48,2431.4,2431.2,3.2078]
[1728070516312,1.48,2431.4,2430.9,0.096]
[1728070516313,0.41137,2431.0,2430.9,0.096]
[1728070516504,0.41139,2430.9,2430.8,3.2078]
[1728070516809,2.31649,2430.9,2430.8,3.2078]
[1728070517512,6.43009,2430.9,2430.8,3.2078]
[1728070519107,6.0187,2430.9,2430.5,0.8188]
[1728070519304,6.0187,2430.9,2430.5,0.4249]
[1728070519305,1.89144,2430.6,2430.5,0.4249]
[1728070519506,0.41147,2430.4,2430.3,3.2078]
[1728070519811,0.41149,2430.3,2430.2,0.8209]
[1728070520206,0.41149,2430.3,2430.2,0.4091]
[1728070520914,0.83719,2430.3,2430.2,0.4091]
[1728070524112,2.31719,2430.3,2430.2,0.4091]
[1728070524617,0.41152,2430.2,2430.0,3.6196]
[1728070524815,1.48,2430.1,2430.0,3.6196]
[1728070525218,1.48,2430.1,2430.0,3.2078]
[1728070525521,1.8842,2430.1,2430.0,3.2078]
[1728070526412,0.41156,2429.9,2429.8,0.3975]
[1728070526718,1.89156,2429.9,2429.8,0.3975]
[1728070527323,1.48,2429.9,2429.8,0.3975]
[1728070527619,0.41159,2429.7,2429.5,0.4039]
[1728070527814,0.41159,2429.7,2429.5,0.8118]
[1728070527815,1.89159,2429.7,2429.5,0.8118]
[1728070528021,1.48,2429.7,2429.5,0.8118]
[1728070528318,1.8916,2429.7,2429.5,0.8118]
[1728070528523,1.48,2429.7,2429.5,0.8118]
[1728070528717,0.41161,2429.6,2429.5,0.8118]
[1728070529120,1.89159,2429.7,2429.5,0.8118]
[1728070529329,1.48,2429.7,2429.5,0.8118]
[1728070529918,0.41161,2429.6,2429.5,0.8118]
[1728070531528,0.41161,2429.6,2429.5,0.4079]
[1728070531529,4.52761,2429.6,2429.5,0.4079]
[1728070531731,0.41165,2429.4,2429.2,0.096]
[1728070531920,2.93251,2429.7,2429.2,0.394]
[1728070531921,1.89166,2429.3,2429.2,0.394]
[1728070532114,1.48,2429.3,2429.2,0.394]
[1728070533326,0.41167,2429.2,2429.1,3.2078]
[1728070533518,1.22467,2429.2,2429.1,3.2078]
[1728070534019,0.813,2429.2,2429.1,3.2078]
[1728070535317,1.22467,2429.2,2429.1,3.2078]
[1728070537429,1.22467,2429.2,2428.9,0.80572]
[1728070537729,1.48,2429.0,2428.9,0.394]
[1728070540521,5.5968,2429.0,2428.6,0.096]
[1728070540726,1.89176,2428.7,2428.5,0.3994]
[1728070540925,1.48,2428.6,2428.5,0.3994]
[1728070542022,1.89178,2428.6,2428.5,0.3994]
[1728070542423,1.89178,2428.6,2428.4,3.2078]
[1728070543223,1.89178,2428.6,2428.3,0.81123]
[1728070543420,1.48,2428.4,2428.3,0.3994]
[1728070543924,3.21,2428.4,2428.3,0.3994]
[1728070544520,3.62181,2428.4,2428.3,0.3994]
[1728070545520,3.21,2428.4,2428.3,0.3994]
[1728070547123,3.62181,2428.4,2428.3,0.3994]
[1728070548230,0.41184,2428.2,2428.1,0.3969]
[1728070548524,3.21,2428.2,2428.1,0.3969]
[1728070549931,7.74024,2428.2,2428.1,0.3969]
[1728070550138,8.12774,2428.2,2428.1,0.3969]
[1728070550524,3.5975,2428.2,2428.1,0.3969]
[1728070551344,0.096,2429.1,2428.1,13.7253]
[1728070551630,3.2078,2429.2,2428.7,3.21]
[1728070551833,3.61948,2429.2,2428.8,1.65043]
[1728070552033,6.4178,2429.2,2428.9,0.41172]
[1728070552232,6.4178,2429.2,2428.8,1.2387]
[1728070552536,6.82949,2429.2,2428.8,1.65043]
[1728070553030,3.62169,2429.2,2428.9,0.41172]
[1728070553635,3.62169,2429.2,2428.8,1.65044]
[1728070554225,3.62168,2429.2,2428.8,1.65043]
[1728070554826,0.4117,2429.1,2428.8,1.65043]
[1728070555130,3.62168,2429.2,2428.8,1.65043]
[1728070555534,3.62168,2429.2,2428.8,1.2387]
[1728070555738,3.62168,2429.2,2428.8,1.65043]
[1728070555937,0.41155,2430.0,2429.6,0.4116]
[1728070556238,4.23636,2430.7,2429.6,0.4116]
[1728070556239,0.41144,2430.6,2429.8,0.41157]
[1728070556431,3.21,2430.7,2430.0,3.2078]
[1728070556432,3.62143,2430.7,2430.0,3.2078]
[1728070556733,3.6289,2430.9,2430.3,3.2078]
[1728070556928,4.04029,2430.9,2430.5,0.41144]
[1728070557334,3.6289,2430.9,2430.5,0.41144]
[1728070557636,0.4189,2430.9,2430.6,0.41143]
[1728070558027,0.4189,2430.9,2430.7,0.41142]
[1728070558228,3.21,2431.1,2430.6,3.2078]
[1728070558436,0.41135,2431.2,2430.8,0.41139]
[1728070558931,0.41135,2431.2,2430.8,0.4114]
[1728070559335,4.504,2431.3,2430.6,3.2078]
[1728070559640,0.41138,2431.0,2430.5,0.41144]
[1728070559832,3.21,2430.7,2430.4,0.80606]
[1728070560032,3.21,2430.5,2430.3,3.2078]
[1728070560438,3.21,2430.5,2430.2,0.4115]
[1728070560742,3.21,2430.5,2430.0,3.611]
[1728070561044,3.21,2430.7,2430.0,3.611]
[1728070561341,2.1138,2430.9,2430.0,4.02253]
[1728070561342,0.41147,2430.4,2430.0,4.02253]
[1728070561731,3.62146,2430.5,2430.1,0.41151]
[1728070562132,3.62146,2430.5,2430.0,3.611]
[1728070562133,3.62146,2430.5,2430.0,4.02253]
[1728070562336,3.62146,2430.5,2430.0,3.611]
[1728070562337,0.41148,2430.4,2430.0,3.611]
[1728070562537,0.41148,2430.4,2430.0,4.02254]
[1728070563339,3.62146,2430.5,2430.0,4.02254]
[1728070563535,0.41147,2430.4,2430.0,4.02254]
[1728070563742,3.62146,2430.5,2430.0,4.02254]
[1728070563942,3.21,2430.1,2430.0,3.611]
[1728070564334,3.21,2430.1,2430.0,3.2078]
[1728070569244,3.62152,2430.1,2430.0,3.2078]
[1728070569546,4.04632,2430.1,2430.0,3.2078]
[1728070569742,3.6348,2430.1,2430.0,3.2078]
[1728070570140,0.41157,2429.9,2429.6,0.4231]
[1728070570343,3.21,2429.8,2429.6,0.4231]
[1728070570644,3.21,2429.8,2429.3,3.2078]
[1728070570842,3.62158,2429.8,2429.3,3.2078]
[1728070571038,0.41159,2429.7,2429.3,3.61945]
[1728070571238,3.21,2429.8,2429.3,3.2078]
[1728070571544,0.41159,2429.7,2429.3,3.61945]
[1728070572643,3.21,2429.8,2429.3,3.2078]
[1728070572854,0.41163,2429.5,2429.3,3.2078]
[1728070573044,3.6184,2429.4,2429.1,0.3915]
[1728070573245,3.62169,2429.2,2428.8,0.096]
[1728070573449,0.4117,2429.1,2428.7,3.61955]
[1728070573640,3.21,2429.2,2428.7,3.2078]
[1728070573839,0.41169,2429.1,2428.7,3.61955]
[1728070574044,3.62168,2429.2,2428.8,0.41173]
[1728070574241,0.4117,2429.1,2428.7,3.61955]
[1728070574446,3.62168,2429.2,2428.8,0.41173]
[1728070574838,3.21,2429.2,2428.7,3.2078]
[1728070575039,0.82005,2429.4,2429.1,0.41168]
[1728070575244,0.4084,2429.4,2429.1,0.41168]
[1728070575537,0.4084,2429.4,2428.8,3.21]
[1728070575538,0.82004,2429.4,2429.0,0.41169]
[1728070575741,0.41166,2429.3,2429.0,0.4117]
[1728070576042,0.82005,2429.4,2429.1,0.41169]
[1728070576241,0.82005,2429.4,2429.0,3.6195]
[1728070576440,0.82005,2429.4,2429.0,3.2078]
[1728070576637,0.4084,2429.4,2429.0,3.2078]
[1728070576842,0.82005,2429.4,2429.0,3.6195]
[1728070577045,0.4084,2429.4,2429.1,0.41169]
[1728070578448,0.4084,2429.4,2429.0,3.6195]
[1728070578657,0.82004,2429.4,2429.0,3.6195]
[1728070579057,0.82004,2429.4,2429.0,3.2078]
[1728070579357,0.82004,2429.4,2429.0,3.61951]
[1728070580644,0.4084,2429.4,2429.1,0.41169]
[1728070580952,0.4084,2429.4,2429.0,3.6195]
[1728070581261,0.4084,2429.4,2429.0,3.2078]
[1728070581551,0.82005,2429.4,2429.0,3.61951]
[1728070581746,0.4084,2429.4,2429.0,3.61951]
[1728070582453,0.82004,2429.4,2429.0,3.61951]
[1728070582648,0.4084,2429.4,2429.0,3.61951]
[1728070583052,0.4084,2429.4,2429.0,3.2078]
[1728070583354,3.62167,2429.3,2429.0,3.2078]
[1728070583658,0.41167,2429.2,2429.0,3.2078]
[1728070584356,0.41168,2429.2,2429.0,3.2078]
[1728070585549,0.41169,2429.2,2429.0,3.2078]
[1728070585857,0.41169,2429.1,2429.0,3.2078]
[1728070586566,3.61948,2429.2,2428.8,0.41174]
[1728070586748,3.61948,2429.2,2428.7,3.2078]
[1728070586749,3.2078,2429.2,2428.7,3.2078]
[1728070586954,3.61948,2429.2,2428.8,0.41174]
[1728070587161,0.82005,2429.4,2429.0,3.6195]
[1728070587555,0.82005,2429.4,2429.1,0.41168]
[1728070587556,0.4084,2429.4,2429.1,0.41168]
[1728070587762,0.4084,2429.4,2429.2,0.41167]
[1728070588051,0.4084,2429.4,2429.1,0.394]
[1728070588052,3.21,2429.7,2429.1,0.394]
[1728070588259,0.41161,2429.6,2429.3,0.41165]
[1728070588463,0.4116,2429.7,2429.4,0.41164]
[1728070588963,0.41161,2429.6,2429.3,0.41165]
[1728070590557,0.41161,2429.6,2429.3,3.61945]
[1728070590961,0.41162,2429.5,2429.3,3.61945]
[1728070591356,0.41162,2429.5,2429.3,3.2078]
[1728070591562,0.41162,2429.5,2429.3,3.61945]
[1728070592465,0.41164,2429.5,2429.3,3.2078]
[1728070592769,0.41164,2429.5,2429.3,3.61946]
[1728070593270,0.41164,2429.4,2429.3,3.2078]
[1728070593959,0.41164,2429.4,2429.2,0.41166]
[1728070593960,3.21,2429.5,2429.1,0.394]
[1728070594268,0.41167,2429.2,2429.1,0.394]
[1728070597669,0.41167,2429.2,2429.1,0.80569]
[1728070597865,0.41167,2429.2,2429.1,0.394]
[1728070598365,0.41167,2429.2,2429.1,0.80569]
[1728070598861,0.83637,2429.3,2429.1,0.80569]
[1728070599361,0.41167,2429.2,2429.1,0.80569]
[1728070599666,0.4247,2429.3,2429.1,0.80569]
[1728070599667,0.83637,2429.3,2429.1,0.80569]
[1728070599972,1.02895,2429.8,2429.4,0.41163]
[1728070600155,0.41162,2429.5,2429.4,3.61943]
[1728070600460,0.3963,2429.7,2429.4,3.2078]
[1728070600663,0.41161,2429.6,2429.5,0.41162]
[1728070600965,0.41161,2429.6,2429.4,3.61943]
[1728070601463,0.41162,2429.5,2429.4,3.61943]
[1728070601965,0.41162,2429.5,2429.4,7.73543]
[1728070602160,0.3963,2429.7,2429.4,7.73543]
[1728070602357,0.41161,2429.6,2429.5,0.41162]
[1728070602965,0.3963,2429.7,2429.4,3.61943]
[1728070603161,0.41162,2429.6,2429.4,3.61943]
[1728070603565,0.41162,2429.5,2429.4,3.61943]
[1728070604065,0.41162,2429.5,2429.4,7.73543]
[1728070604565,0.3963,2429.7,2429.4,7.73543]
[1728070604762,0.41162,2429.6,2429.4,3.61943]
[1728070605159,0.41162,2429.5,2429.4,3.61943]
[1728070605558,0.3963,2429.7,2429.4,7.73543]
[1728070605866,0.41162,2429.5,2429.4,3.61943]
[1728070606163,0.4248,2429.9,2429.5,4.116]
[1728070606372,0.4246,2430.1,2429.6,0.4142]
[1728070606373,0.41159,2429.7,2429.6,0.4142]
[1728070606867,0.41159,2429.7,2429.6,4.5302]
[1728070607071,0.41159,2429.7,2429.6,4.9225]
[1728070608059,0.41158,2429.8,2429.6,5.33411]
[1728070608259,0.41158,2429.8,2429.6,1.21811]
[1728070608461,0.41158,2429.8,2429.6,5.33411]
[1728070608859,0.41155,2430.0,2429.8,0.41157]
[1728070609569,0.41156,2429.9,2429.7,0.41158]
[1728070609765,0.41155,2430.0,2429.8,0.41157]
[1728070610266,0.8206,2430.1,2429.6,0.8065]
[1728070610466,1.84943,2430.1,2429.7,0.41158]
[1728070610661,0.396,2430.1,2429.6,0.8065]
[1728070610869,0.396,2430.1,2429.7,3.21]
[1728070610870,0.41154,2430.0,2429.7,3.21]
[1728070611168,0.396,2430.1,2429.7,3.21]
[1728070611565,0.41154,2430.0,2429.9,0.41155]
[1728070611965,0.3927,2430.2,2430.1,0.41152]
[1728070611966,0.41151,2430.2,2430.1,0.41152]
[1728070612179,0.41151,2430.2,2430.1,4.52672]
[1728070612465,0.4115,2430.2,2430.1,7.323]
[1728070612966,0.4115,2430.2,2430.1,7.7075]
[1728070619768,0.4115,2430.2,2430.1,3.5923]
[1728070619968,0.4115,2430.2,2430.1,7.7075]
[1728070620169,0.4115,2430.2,2430.1,3.5923]
[1728070622166,0.4115,2430.3,2430.1,3.5923]
[1728070622366,0.4115,2430.2,2430.1,3.5923]
[1728070622661,0.41149,2430.3,2430.1,3.5923]
[1728070622867,0.4115,2430.2,2430.1,3.5923]
[1728070623261,0.4115,2430.2,2430.1,7.7075]
[1728070623472,0.4115,2430.2,2430.1,4.4997]
[1728070626073,0.4115,2430.2,2430.1,0.3845]
[1728070626374,0.4115,2430.2,2430.1,4.4997]
[1728070628074,0.4115,2430.2,2430.1,0.3845]
[1728070635479,0.4113,2430.3,2430.1,0.3845]
[1728070635680,0.82279,2430.3,2430.2,0.4115]
[1728070635982,0.82279,2430.3,2430.1,3.5923]
[1728070636181,0.82279,2430.3,2430.1,4.00381]
[1728070636381,0.4115,2430.2,2430.1,4.00381]
[1728070636882,0.4113,2430.3,2430.1,4.00381]
[1728070637078,0.4115,2430.2,2430.1,4.00382]
[1728070637285,0.4115,2430.3,2430.2,0.4115]
[1728070637582,0.4115,2430.2,2430.1,5.48382]
[1728070637783,0.4115,2430.2,2430.1,5.48381]
[1728070638485,0.4115,2430.2,2430.1,2.27601]
[1728070639377,0.4115,2430.2,2430.1,5.48381]
[1728070639577,0.4115,2430.3,2430.1,5.48381]
[1728070639787,0.4115,2430.2,2430.1,5.48381]
[1728070640777,0.41149,2430.3,2430.1,5.48381]
[1728070640980,0.4076,2430.6,2430.2,1.48]
[1728070641196,0.8236,2430.8,2430.7,0.41142]
[1728070641381,0.4058,2430.8,2430.7,5.09922]
[1728070643483,0.4058,2430.8,2430.7,3.61922]
[1728070652290,0.82916,2431.1,2430.9,0.41139]
[1728070652488,0.82916,2431.1,2430.8,3.21]
[1728070652489,0.4178,2431.1,2430.8,3.21]
[1728070652684,0.4178,2431.1,2431.0,3.21]
[1728070652884,0.4178,2431.1,2431.0,3.62137]
[1728070653183,0.82915,2431.1,2431.0,3.21]
[1728070653686,0.82915,2431.1,2431.0,3.5995]
[1728070656383,15.0334,2431.1,2430.4,0.096]
[1728070656581,0.4115,2430.2,2430.1,0.096]
[1728070656785,3.21,2430.3,2429.9,0.63853186]
[1728070656985,0.8079,2430.1,2429.9,0.63853186]
[1728070657389,1.21943,2430.1,2429.9,0.63853186]
[1728070657584,0.41154,2430.0,2429.9,0.63853186]
[1728070658189,0.41154,2430.0,2429.6,3.61939]
[1728070658389,0.41154,2430.0,2429.6,3.2078]
[1728070658688,0.41154,2430.0,2429.7,0.41158]
[1728070659193,0.41156,2429.9,2429.6,3.2078]
[1728070659396,0.41156,2429.9,2429.6,3.6194]
[1728070659793,0.41156,2429.9,2429.7,0.41159]
[1728070660492,0.8079,2430.1,2429.6,3.2078]
[1728070660886,0.8079,2430.1,2429.7,0.41158]
[1728070660887,0.41156,2429.9,2429.7,0.41158]
[1728070662795,0.41156,2429.9,2429.6,3.6194]
[1728070662989,0.41158,2429.8,2429.6,3.2078]
[1728070663300,0.41158,2429.8,2429.6,3.61941]
[1728070664999,0.41156,2429.9,2429.7,0.41158]
[1728070666490,5.04454,2430.1,2429.6,3.2078]
[1728070666688,0.41158,2429.8,2429.6,3.6194]
[1728070667397,0.41158,2429.8,2429.6,3.2078]
[1728070667601,0.41156,2429.9,2429.7,0.41158]
[1728070668503,0.41158,2429.8,2429.6,3.6194]
[1728070669299,0.41158,2429.8,2429.6,3.2078]
[1728070669503,0.4059,2430.0,2429.7,0.41159]
[1728070669699,0.4059,2430.0,2429.8,0.41157]
[1728070669999,0.41156,2429.9,2429.8,0.41157]
[1728070670200,0.81745,2430.0,2429.8,0.41157]
[1728070672500,0.81745,2430.0,2429.7,0.41158]
[1728070672898,0.4059,2430.0,2429.6,3.2078]
[1728070673095,0.41156,2429.9,2429.7,0.41159]
[1728070673295,0.41156,2429.9,2429.6,3.61939]
[1728070674299,0.41156,2429.9,2429.6,3.2078]
[1728070674603,0.41156,2429.9,2429.7,0.41159]
[1728070675199,0.41156,2429.9,2429.6,3.6194]
[1728070675501,0.4059,2430.0,2429.6,4.6878]
[1728070675998,0.41158,2429.8,2429.6,5.0994]
[1728070677108,0.41158,2429.8,2429.6,1.8916]
[1728070677311,0.41159,2429.8,2429.6,1.8916]
[1728070677801,0.41159,2429.8,2429.6,1.48]
[1728070678003,0.41159,2429.7,2429.6,1.8916]
[1728070678196,0.41159,2429.7,2429.6,1.48]
[1728070678909,0.41158,2429.8,2429.6,1.89159]
[1728070679305,1.43477,2430.0,2429.6,1.89159]
[1728070679603,0.41159,2429.7,2429.6,1.48]
[1728070679809,0.41159,2429.7,2429.6,1.89161]
[1728070680803,0.41159,2429.7,2429.6,1.48]
[1728070681205,1.48,2429.9,2429.6,1.48]
[1728070681412,0.41158,2429.8,2429.6,1.8916]
[1728070681910,1.89157,2429.9,2429.6,1.8916]
[1728070683211,1.89157,2429.9,2429.7,0.41159]
[1728070683606,1.89157,2429.9,2429.6,1.48]
[1728070683806,1.89157,2429.9,2429.6,1.89159]
[1728070684207,0.4059,2430.0,2429.6,1.89159]
[1728070684409,0.41157,2429.8,2429.6,1.89159]
[1728070684809,0.4059,2430.0,2429.6,1.89159]
[1728070685014,0.41157,2429.9,2429.6,1.89159]
[1728070685314,0.41158,2429.8,2429.6,1.89159]
[1728070686401,0.41158,2429.8,2429.6,1.8916]
[1728070691510,0.41156,2429.9,2429.6,1.8916]
[1728070691711,0.41158,2429.8,2429.6,1.8916]
[1728070694113,1.43476,2430.0,2429.6,1.8916]
[1728070694314,0.41159,2429.7,2429.6,1.8916]
[1728070698025,1.48,2429.9,2429.5,0.41162]
[1728070698325,0.4124,2429.6,2429.4,0.4239]
[1728070698512,0.41162,2429.5,2429.4,0.4239]
[1728070699017,0.41168,2429.2,2429.0,1.8917]
[1728070699218,0.41168,2429.2,2429.1,0.4067]
[1728070700519,0.4085,2429.5,2429.4,0.41164]
[1728070700819,0.4116,2429.7,2429.3,1.48]
[1728070701016,0.4116,2429.7,2429.5,0.41162]
[1728070701518,0.4116,2429.7,2429.6,0.3964]
[1728070701722,3.33241,2429.9,2429.3,1.89165]
[1728070701723,0.41163,2429.5,2429.3,1.48]
[1728070702019,1.48,2429.7,2429.3,0.3964]
[1728070702226,0.41164,2429.4,2429.3,0.3964]
[1728070703116,0.80294,2429.4,2429.3,0.3964]
[1728070703313,0.80294,2429.4,2429.3,0.80806]
[1728070703719,0.80294,2429.4,2429.3,0.3964]
[1728070703916,1.48,2429.7,2429.3,0.3964]
[1728070704122,0.41161,2429.6,2429.4,0.41163]
[1728070704321,1.48,2429.7,2429.4,0.41163]
[1728070704519,0.41162,2429.6,2429.4,0.41163]
[1728070706223,0.41162,2429.6,2429.3,0.3964]
[1728070706224,0.41162,2429.5,2429.3,0.3964]
[1728070706525,0.41162,2429.6,2429.4,0.41163]
[1728070706914,0.41161,2429.6,2429.4,0.41163]
[1728070707122,1.48,2429.7,2429.4,0.41163]
[1728070707426,0.41162,2429.5,2429.4,0.41163]
[1728070708025,0.41162,2429.5,2429.3,0.3964]
[1728070708418,2.509,2429.7,2429.2,3.2078]
[1728070708630,0.4155,2429.4,2429.3,0.41165]
[1728070710126,0.4155,2429.4,2429.2,3.2078]
[1728070710624,0.4155,2429.4,2429.3,0.41166]
[1728070711624,0.82715,2429.4,2429.2,3.61946]
[1728070711929,0.82715,2429.4,2429.3,0.41166]
[1728070712129,0.4155,2429.4,2429.3,0.41166]
[1728070714130,0.4155,2429.4,2429.2,3.2078]
[1728070714329,0.82715,2429.4,2429.2,3.61946]
[1728070714517,0.41161,2429.6,2429.2,4.6878]
[1728070714721,0.41161,2429.6,2429.4,1.89163]
[1728070715723,0.427,2429.7,2429.4,1.48]
[1728070716025,0.82532,2429.5,2429.3,0.41164]
[1728070717044,8.8038,2429.4,2429.0,0.4253]
[1728070717241,0.7737,2429.3,2429.0,1.9053]
[1728070717529,1.18536,2429.3,2429.1,0.41169]
[1728070718029,1.18536,2429.3,2429.0,2.317]
[1728070718828,1.18536,2429.3,2429.0,1.9053]
[1728070719230,1.18536,2429.3,2429.0,0.83701]
[1728070719829,1.18536,2429.3,2429.0,0.4253]
[1728070720133,0.41168,2429.2,2429.0,0.4253]
[1728070720334,0.4269,2429.1,2429.0,0.4253]
[1728070721631,0.4269,2429.1,2429.0,0.83701]
[1728070722629,0.4269,2429.1,2429.0,0.4253]
[1728070724343,0.83859,2429.1,2429.0,0.4253]
[1728070725238,6.0237,2429.1,2428.8,3.2078]
[1728070725436,2.3186,2429.1,2428.8,3.61953]
[1728070725640,2.3186,2429.1,2428.9,0.41172]
[1728070726133,0.8386,2429.1,2428.9,0.41172]
[1728070726341,0.8386,2429.1,2428.8,3.61953]
[1728070726541,0.8386,2429.1,2428.9,0.41172]
[1728070726738,0.4269,2429.1,2428.9,1.48]
[1728070726936,0.4269,2429.1,2429.0,0.41171]
[1728070730942,0.83859,2429.1,2429.0,0.41171]
[1728070731839,0.83859,2429.1,2428.9,1.89171]
[1728070736749,0.41171,2429.0,2428.8,3.61953]
[1728070737151,0.4269,2429.1,2428.8,3.2078]
[1728070737353,0.41172,2428.9,2428.8,3.2078]
[1728070739456,0.41172,2429.0,2428.8,3.2078]
[1728070739667,0.41172,2428.9,2428.8,3.2078]
[1728070740365,0.41171,2429.0,2428.8,3.61953]
[1728070741863,0.4269,2429.1,2428.9,0.41172]
[1728070741864,0.8386,2429.1,2428.9,0.41172]
[1728070742858,0.41171,2429.0,2428.9,0.41172]
[1728070743059,0.41171,2429.0,2428.9,3.61952]
[1728070743260,0.41171,2429.0,2428.9,3.2078]
[1728070743665,0.8386,2429.1,2428.9,3.61952]
[1728070743867,0.41171,2429.0,2428.9,3.61952]
[1728070744170,0.4269,2429.1,2428.9,3.2078]
[1728070744462,0.4269,2429.1,2429.0,0.41171]
[1728070744670,0.41165,2429.4,2428.9,9.8339]
[1728070744864,0.41164,2429.4,2429.3,0.41165]
[1728070745065,1.22543,2429.5,2429.3,0.41165]
[1728070745364,1.22543,2429.5,2429.3,0.80125]
[1728070746165,0.41164,2429.4,2429.3,0.80125]
[1728070746465,1.22544,2429.5,2429.3,0.3896]
[1728070746668,0.41164,2429.4,2429.3,0.3896]
[1728070749177,1.22544,2429.5,2429.3,0.80125]
[1728070749667,0.41164,2429.4,2429.3,0.3896]
[1728070755474,2.2938,2429.5,2429.0,1.48]
[1728070755672,0.41168,2429.2,2429.1,0.4165]
[1728070756278,1.48,2429.2,2428.9,3.61952]
[1728070756478,1.6432,2429.1,2428.9,4.03141]
[1728070757282,1.6432,2429.1,2429.0,0.41171]
[1728070759187,0.41167,2429.3,2429.1,0.41168]
[1728070759487,0.41168,2429.2,2429.1,0.41168]
[1728070761286,0.8456,2429.3,2429.0,1.8917]
[1728070761287,0.41169,2429.1,2429.0,1.8917]
[1728070761479,0.41169,2429.1,2429.0,2.46624962]
[1728070761678,0.41169,2429.1,2429.0,1.8917]
[1728070761878,0.41169,2429.1,2429.0,2.46625172]
[1728070762277,0.8456,2429.3,2428.9,4.03142]
[1728070762278,0.41171,2429.0,2428.9,4.03142]
[1728070762483,0.41171,2429.0,2428.9,4.60602325]
[1728070762885,0.79681,2429.1,2428.9,4.60602325]
[1728070763189,0.41171,2429.0,2428.9,4.03142]
[1728070763487,0.7968,2429.1,2428.9,4.60606444]
[1728070763679,0.7968,2429.1,2428.9,4.03142]
[1728070764288,0.7968,2429.1,2428.9,3.6197]
[1728070764490,0.7968,2429.1,2429.0,0.41171]
[1728070769187,0.7968,2429.1,2428.9,4.03142]
[1728070769891,0.3851,2429.1,2429.0,0.41171]
[1728070770285,0.79679,2429.1,2429.0,0.41171]
[1728070772096,0.79679,2429.1,2428.9,4.03142]
[1728070772295,0.7968,2429.1,2428.9,4.03142]
[1728070772989,0.41171,2429.0,2428.9,3.2078]
[1728070774392,1.89171,2429.0,2428.9,3.2078]
[1728070775191,6.00851,2429.0,2428.9,3.2078]
[1728070775388,0.41176,2428.7,2428.6,3.3038]
[1728070775595,1.89176,2428.7,2428.6,3.2078]
[1728070776195,1.89175,2428.8,2428.6,3.61957]
[1728070776398,0.41176,2428.7,2428.6,3.61957]
[1728070776603,0.80566,2428.7,2428.6,3.61957]
[1728070776996,0.80566,2428.7,2428.6,3.2078]
[1728070778495,1.21966,2428.7,2428.6,3.2078]
[1728070781595,2.2879,2428.7,2428.4,0.7994]
[1728070781806,0.41179,2428.6,2428.4,0.7994]
[1728070782004,0.81809,2428.5,2428.4,0.7994]
[1728070782314,0.81809,2428.5,2428.4,0.3876]
[1728070782499,0.41184,2428.3,2428.1,0.83865]
[1728070782805,0.41184,2428.3,2428.1,0.4268]
[1728070782806,0.82054,2428.2,2428.1,0.4268]
[1728070782993,1.23624,2428.2,2428.1,0.4268]
[1728070786103,1.23624,2428.2,2428.1,0.83866]
[1728070786302,1.23624,2428.2,2428.1,0.4268]
[1728070788000,1.23624,2428.2,2427.9,0.41189]
[1728070788001,0.41187,2428.1,2427.9,0.41189]
[1728070788198,0.80777,2428.1,2428.0,0.3919]
[1728070788404,0.80777,2428.1,2428.0,0.80378]
[1728070788603,4.92617,2428.1,2428.0,0.80378]
[1728070789703,4.5143,2428.1,2428.0,0.3919]
[1728070790104,5.9943,2428.1,2428.0,0.3919]
[1728070791106,6.40616,2428.1,2428.0,0.3919]
[1728070791301,0.41188,2428.0,2427.8,3.61971]
[1728070794319,0.41189,2428.0,2427.8,3.61971]
[1728070795311,1.8759,2428.1,2427.8,3.61971]
[1728070795507,0.41188,2428.0,2427.8,3.61971]
[1728070796316,0.41189,2427.9,2427.8,3.61971]
[1728070797211,1.8759,2428.1,2427.8,3.2078]
[1728070797416,0.80778,2428.1,2427.9,0.41189]
[1728070798407,0.3959,2428.1,2427.8,3.2078]
[1728070798607,0.41188,2428.0,2427.9,0.41189]
[1728070799513,0.80778,2428.1,2427.9,0.41189]
[1728070800210,0.80778,2428.1,2428.0,0.41188]
[1728070800612,0.3959,2428.1,2427.9,0.41188]
[1728070800821,0.41188,2428.0,2427.9,0.41188]
[1728070801318,1.8759,2428.1,2427.8,3.2078]
[1728070801513,0.41189,2427.9,2427.8,3.2078]
[1728070802519,1.48,2427.9,2427.8,3.2078]
[1728070802819,0.41188,2428.0,2427.8,3.2078]
[1728070803419,0.41188,2428.0,2427.9,0.41189]
[1728070803719,0.41188,2428.0,2427.8,3.6197]
[1728070804017,1.8759,2428.1,2427.8,3.6197]
[1728070804218,0.41189,2427.9,2427.8,3.6197]
[1728070805412,1.8759,2428.1,2427.8,3.6197]
[1728070805413,0.3959,2428.1,2427.8,3.2078]
[1728070805608,0.41186,2428.2,2428.0,1.89186]
[1728070805821,0.41186,2428.2,2428.1,1.19466]
[1728070806722,0.41186,2428.2,2428.1,0.7828]
[1728070806918,0.41184,2428.3,2428.1,1.19465]
[1728070807412,0.41184,2428.3,2428.1,1.19464]
[1728070807613,4.4908,2428.6,2428.1,1.19464]
[1728070807614,0.41178,2428.6,2428.5,0.41179]